[Event "Sardinia World Festival-A 2024"]
[Site "Orosei"]
[Date "2024.04.30"]
[Round "4.1"]
[White "Bharath Subramaniyam H"]
[Black "Pichot, Alan"]
[Result "1/2-1/2"]
[ECO "C45"]
[WhiteElo "2544"]
[BlackElo "2644"]
[Annotator "TA"]
[PlyCount "56"]
[EventDate "2024.04.26"]
[EventType "swiss"]
[EventCountry "ITA"]
[SourceTitle "playchess.com"]
[Source "ChessBase"]
[SourceQuality "1"]
[TimeControl "40/5400+30:1800+30"]

{[%evp 11,56,-14,0,0,0,0,0,0,0,0,0,0,0,0,0,0,4,0,12,0,0,0,4,0,0,0,0,0,0,6,30,20,31,24,42,51,41,0,0,0,0,0,0,0,0,0,0]} 1. e4 {[%emt 0:00:14]} e5 {[%emt 0:03:06]} 2. Nf3 {[%emt 0:00:11]} Nc6 {[%emt 0:00:13]} 3. d4 {[%emt 0:00:44]} exd4 {[%emt 0:00:18]} 4. Nxd4 {[%emt 0:00:10]} Nf6 {[%emt 0:00:14]} 5. Nxc6 {[%emt 0:00:40]} bxc6 {[%emt 0:00:07]} 6. Nd2 {[%emt 0:00:19]} d5 {[%emt 0:00:42]} 7. exd5 {[%emt 0:00:08]} cxd5 {[%emt 0:00:09]} 8. Bb5+ {[%emt 0:00:06]} Bd7 {[%emt 0:00:09]} 9. Bxd7+ {[%emt 0:00:06]} Qxd7 {[%emt 0:00:05]} 10. O-O {[%emt 0:00:11]} Be7 {[%emt 0:00:30]} 11. b3 {[%emt 0:00:08]} O-O {[%emt 0:00:35]} 12. Bb2 {[%emt 0:00:06]} Rad8 {[%emt 0:01:26]} 13. Re1 {[%emt 0:04:03]} h6 {[%emt 0:00:32]} 14. Qf3 {[%emt 0:13:21]} Nh7 {[%emt 0:00:16]} 15. Nf1 {[%emt 0:14:45][%cal Bd2f1,Bf1e3,Be3c4][%mdl 32]} Bf6 {[%emt 0:04:25]} 16. Bxf6 {[%emt 0:02:21]} Nxf6 {[%emt 0:00:07]} 17. Rad1 {[%emt 0:11:20]} Rfe8 {[%emt 0:03:25]} 18. Rxe8+ {[%emt 0:03:19]} Rxe8 {[%emt 0:10:58]} 19. h3 {[%emt 0:01:36]} Qe6 {[%emt 0:26:35]} 20. Ne3 {[%emt 0:03:53]} c6 {[%emt 0:00:48]} 21. c4 {[%emt 0:08:12]} dxc4 {[%emt 0:00:37]} 22. Nxc4 {[%emt 0:00:27]} Qe2 {[%emt 0:21:18]} 23. Qxe2 {[%emt 0:02:25]} Rxe2 {[%emt 0:00:03]} 24. Rd2 {[%emt 0:08:07]} Rxd2 {[%emt 0:02:31] The position is equal.} 25. Nxd2 $14 {[%emt 0:00:09] KN-KN} Kf8 {[%emt 0:03:49]} 26. Nc4 {[%emt 0:03:42]} Ke7 {[%emt 0:05:53]} 27. Kf1 {[%emt 0:03:00]} Ke6 {[%emt 0:01:23]} 28. Ke2 {[%emt 0:02:45]} Nd5 {[%emt 0:01:24] Weighted Error Value: White=0.03 (flawless) /Black=0.03 (flawless) .  Inaccurate:     	White=1     	---        OK:         	White=12    	Black=11     Best:        	---       	Black=1} 1/2-1/2

[Event "Sardinia World Festival-A 2024"]
[Site "Orosei"]
[Date "2024.04.30"]
[Round "4.2"]
[White "Moussard, Jules"]
[Black "Mikhalevski, Victor"]
[Result "1/2-1/2"]
[ECO "C70"]
[WhiteElo "2610"]
[BlackElo "2506"]
[Annotator "TA"]
[PlyCount "170"]
[EventDate "2024.04.26"]
[EventType "swiss"]
[EventCountry "ITA"]
[SourceTitle "playchess.com"]
[Source "ChessBase"]
[SourceQuality "1"]
[TimeControl "40/5400+30:1800+30"]

{[%evp 85,170,64,64,64,64,64,64,64,64,64,66,64,66,66,66,66,66,66,66,66,66,64,64,64,64,64,64,64,65,64,65,65,65,64,65,65,65,65,68,68,99,99,99,99,99,99,99,99,99,99,99,99,99,99,99,99,99,99,99,99,99,99,99,8,99,0,8,0,99,99,99,99,99,99,99,99,99,99,99,99,99,99,99,8,8,8,8]} 1. e4 {[%emt 0:10:57]} e5 {[%emt 0:00:10]} 2. Nf3 {[%emt 0:00:06]} Nc6 {[%emt 0:00:06]} 3. Bb5 {[%emt 0:00:06]} a6 {[%emt 0:00:14]} 4. Ba4 {[%emt 0:00:08]} b5 {[%emt 0:00:17]} 5. Bb3 {[%emt 0:00:12]} Na5 {[%emt 0:00:06]} 6. Nc3 {[%emt 0:01:23] C70: Ruy Lopez: 3...a6 4 Ba4, Norwegian and Delayed Schliemann.} Nxb3 {[%emt 0:01:08]} 7. axb3 {[%emt 0:00:08]} Bb7 {[%emt 0:00:04]} 8. O-O {[%emt 0:04:09]} d6 {[%emt 0:00:15]} 9. d4 {[%emt 0:02:40]} exd4 {[%emt 0:00:47]} 10. Qxd4 {[%emt 0:02:31]} Ne7 {[%emt 0:01:22]} 11. Qd3 {[%emt 0:02:08]} Nc6 $146 {[%emt 0:01:13]} ({Predecessor:} 11... Ng6 12. Be3 Qd7 13. Qd4 c5 14. Qd3 Be7 15. Rfd1 Rc8 16. Nd5 Bd8 17. b4 cxb4 18. Nxb4 {½-½ Saganauer,R (2155)-Zonneveld,W (2037) BI-2015-P-0000}) 12. Nd5 {[%emt 0:04:56]} Be7 {[%emt 0:07:33]} 13. c4 {[%emt 0:03:22]} b4 {[%emt 0:02:09]} 14. Nd4 {[%emt 0:07:57]} Nxd4 {[%emt 0:01:31]} 15. Qxd4 {[%emt 0:00:11]} O-O {[%emt 0:00:14]} 16. Qd3 {[%emt 0:00:11]} c5 {[%emt 0:12:19]} 17. Bf4 {[%emt 0:02:21]} Bf6 {[%emt 0:00:22]} 18. Nxf6+ {[%emt 0:16:42]} Qxf6 {[%emt 0:00:44]} 19. Qxd6 {[%emt 0:04:02]} Qxb2 {[%emt 0:02:27]} 20. Rfb1 {[%emt 0:04:14]} Qc3 {[%emt 0:27:44]} 21. f3 {[%emt 0:07:36]} f5 {[%emt 0:02:02]} 22. e5 {[%emt 0:06:08]} Rac8 {[%emt 0:01:42]} 23. Bg5 {[%emt 0:06:46]} Rfe8 {[%emt 0:03:39]} 24. Qd7 {[%emt 0:01:25]} Bc6 {[%emt 0:01:38]} 25. Qxf5 {[%emt 0:00:11]} Qd4+ {[%emt 0:07:11]} 26. Kh1 {[%emt 0:00:10]} Bd7 {[%emt 0:05:29]} 27. Qf4 {[%emt 0:02:13]} Qxe5 {[%emt 0:00:17]} 28. h4 {[%emt 0:03:19]} Bf5 {[%emt 0:01:40]} 29. Qxe5 {[%emt 0:00:06]} Rxe5 {[%emt 0:00:03]} 30. Rb2 {[%emt 0:00:09]} h6 {[%emt 0:00:58]} 31. Bf4 {[%emt 0:00:12]} Re6 {[%emt 0:00:03]} 32. Rd2 {[%emt 0:00:09]} h5 {[%emt 0:10:15]} 33. Kg1 {[%emt 0:00:21]} Rf8 {[%emt 0:01:08]} 34. Bg5 {[%emt 0:01:21]} Ra8 {[%emt 0:02:02]} 35. Ra5 {[%emt 0:02:17]} Re1+ {[%emt 0:01:15]} 36. Kf2 {[%emt 0:00:36]} Rb1 {[%emt 0:00:05]} 37. Rxc5 {[%emt 0:00:04]} Rf8 {[%emt 0:00:37]} 38. Rd6 {[%emt 0:00:48]} Rxb3 {[%emt 0:00:40]} 39. Rxa6 {[%emt 0:00:05]} Rb2+ {[%emt 0:04:08]} 40. Kg3 {[%emt 0:00:07]} b3 {[%emt 0:00:06]} 41. Rb6 {[%emt 0:32:34]} Bd3 {[%emt 0:09:40]} 42. Be3 {[%emt 0:00:00]} Bf1 {[%emt 0:01:52]} 43. Bf2 {[%emt 0:00:00]} Rd8 $1 {[%emt 0:02:35]} 44. Rd5 {[%emt 0:00:00]} ({Of course not} 44. Rxh5 Bxc4 45. Rb7 Rdd2 46. Rb8+ Kf7 $11) 44... Rxd5 $1 {[%emt 0:03:00]} 45. cxd5 {[%emt 0:00:00]} Rd2 {[%emt 0:01:12]} 46. Rxb3 {[%emt 0:00:00]} Rxd5 {[%emt 0:00:06]} 47. Rb1 {[%emt 0:00:00]} Bd3 {[%emt 0:01:10]} 48. Rb4 {[%emt 0:00:00]} g5 {[%emt 0:06:52]} 49. Be3 {[%emt 0:01:40]} gxh4+ {[%emt 0:00:24]} 50. Kxh4 {[%emt 0:00:04]} Bf1 {[%emt 0:01:26]} 51. Rb1 {[%emt 0:00:17]} Bb5 {[%emt 0:01:26]} 52. Bg5 {[%emt 0:01:44]} Rd4+ {[%emt 0:00:29]} 53. Kg3 {[%emt 0:00:40]} ({Don't play} 53. Kxh5 Be8+ 54. Kh6 Rd6+ $15) 53... Rd5 {[%emt 0:01:04]} 54. Bf4 {[%emt 0:01:19]} Kf7 {[%emt 0:01:40]} 55. Rc1 {[%emt 0:00:23]} Kg6 {[%emt 0:00:26]} 56. Rc7 {[%emt 0:00:17]} Rf5 {[%emt 0:00:56]} 57. Be3 {[%emt 0:00:09]} Rf7 {[%emt 0:02:02]} 58. Rc8 {[%emt 0:00:15]} Rf5 {[%emt 0:00:33]} 59. Kh4 {[%emt 0:00:20]} Bf1 {[%emt 0:00:58]} 60. Rc1 {[%emt 0:03:42]} Bb5 {[%emt 0:00:33]} 61. Rd1 {[%emt 0:01:46]} Be2 {[%emt 0:00:35]} 62. Rd6+ {[%emt 0:00:52]} Rf6 {[%emt 0:01:02]} 63. Rxf6+ {[%emt 0:02:58]} Kxf6 {[%emt 0:00:05]} 64. Kxh5 {[%emt 0:00:02]} Bd1 {[%emt 0:00:53]} 65. Bd2 {[%emt 0:00:19]} Be2 {[%emt 0:00:13]} 66. Bc1 {[%emt 0:00:08]} Bd1 {[%emt 0:00:09]} 67. Be3 {[%emt 0:00:03]} Be2 {[%emt 0:00:06]} 68. Bb6 {[%emt 0:00:34]} Kf5 {[%emt 0:04:22] [#]} 69. Bc7 $1 {[%emt 0:00:05]} Kf6 {[%emt 0:00:03]} 70. Bd8+ {[%emt 0:00:56]} Kf5 {[%emt 0:00:28] [#]} 71. Bg5 $1 {[%emt 0:00:09]} Ke6 {[%emt 0:00:19]} 72. Bh6 {[%emt 0:01:55]} Kf6 {[%emt 0:00:11]} 73. Bd2 {[%emt 0:00:23]} Bd1 {[%emt 0:00:50]} 74. Ba5 {[%emt 0:00:05]} ({Better is} 74. Kg4 $16) 74... Be2 {[%emt 0:00:11]} (74... Kf5 $11) 75. Bd8+ {[%emt 0:00:39]} (75. Bc7 $16) 75... Kf5 $11 {[%emt 0:00:06]} 76. Bg5 {[%emt 0:00:02]} ({White should play} 76. Bb6 $11) 76... Ke6 $1 $16 {[%emt 0:00:07]} 77. Kg4 {[%emt 0:00:09]} Bf1 {[%emt 0:00:30]} 78. g3 {[%emt 0:00:49]} Be2 {[%emt 0:00:06]} 79. Bd8 {[%emt 0:00:53]} Kf7 {[%emt 0:00:13]} 80. Kf4 {[%emt 0:00:04]} Kg6 {[%emt 0:00:04]} 81. g4 {[%emt 0:00:03]} Ba6 {[%emt 0:01:14]} 82. Kg3 {[%emt 0:00:05]} Bb7 {[%emt 0:00:05]} 83. f4 {[%emt 0:00:04]} Bc8 {[%emt 0:00:04]} 84. f5+ {[%emt 0:00:17]} (84. Bc7 $16) 84... Bxf5 $1 $11 {[%emt 0:00:05]} 85. gxf5+ {[%emt 0:00:02]} Kxf5 {[%emt 0:00:04]} 1/2-1/2

[Event "Sardinia World Festival-A 2024"]
[Site "Orosei"]
[Date "2024.04.30"]
[Round "4.3"]
[White "Parkhov, Yair"]
[Black "Huschenbeth, Niclas"]
[Result "1-0"]
[ECO "D25"]
[WhiteElo "2513"]
[BlackElo "2607"]
[Annotator "TA"]
[PlyCount "81"]
[EventDate "2024.04.26"]
[EventType "swiss"]
[EventCountry "ITA"]
[SourceTitle "playchess.com"]
[Source "ChessBase"]
[SourceQuality "1"]
[TimeControl "40/5400+30:1800+30"]

{[%evp 10,81,39,39,37,29,41,32,25,27,31,37,26,21,25,15,18,9,19,10,35,0,7,4,14,13,0,-15,-18,-11,0,0,0,-12,0,0,2,0,0,0,0,0,0,0,0,0,0,0,0,0,0,-3,0,-24,0,0,0,-18,30,45,47,77,229,221,233,57,123,126,377,360,587,526,5161,3921]} 1. d4 {[%emt 0:04:10]} d5 {[%emt 0:00:15]} 2. c4 {[%emt 0:00:09]} dxc4 {[%emt 0:00:07]} 3. Nf3 {[%emt 0:00:20]} Nf6 {[%emt 0:00:07]} 4. e3 {[%emt 0:00:05]} Bg4 {[%emt 0:00:12]} 5. Bxc4 {[%emt 0:01:08]} e6 {[%emt 0:00:06]} 6. Nc3 {[%emt 0:01:34]} c5 {[%emt 0:00:15]} 7. Qa4+ {[%emt 0:02:25]} Nbd7 $1 {[%emt 0:00:10]} 8. Ne5 {[%emt 0:01:46] Black must now prevent h3.} (8. d5 {simplifies} a6 9. dxe6 fxe6 10. Qc2) 8... cxd4 {[%emt 0:00:25] White is slightly better.} 9. exd4 {[%emt 0:00:23] [#] Threatens to win with Bg5.} a6 $1 {[%emt 0:00:21] Strongly threatening ...b5.} 10. Nxg4 {[%emt 0:08:36]} Nxg4 {[%emt 0:01:40]} 11. Be2 {[%emt 0:00:33]} b5 {[%emt 0:01:31]} 12. Qb3 {[%emt 0:01:15]} Ngf6 {[%emt 0:02:31]} 13. Bf3 {[%emt 0:05:32]} Rc8 {[%emt 0:00:07]} 14. O-O {[%emt 0:00:59]} Bd6 $1 {[%emt 0:00:05]} 15. h3 {[%emt 0:17:15]} (15. Bb7 $5 Bxh2+ 16. Kh1 $14) 15... O-O {[%emt 0:02:07]} 16. Be3 {[%emt 0:07:46]} Qa5 {[%emt 0:11:30]} 17. a4 {[%emt 0:08:26]} b4 {[%emt 0:29:18]} 18. Ne4 {[%emt 0:00:06]} Nxe4 {[%emt 0:00:06]} 19. Bxe4 {[%emt 0:00:04]} Nf6 {[%emt 0:00:11]} 20. Bf3 {[%emt 0:00:19][%cal Be4f3,Bf3e2,Be2d3,Bd3c4][%mdl 32]} Nd5 {[%emt 0:00:19]} 21. Bd2 {[%emt 0:09:24]} Ne7 {[%emt 0:08:46]} 22. Qd3 {[%emt 0:03:10]} Rc7 {[%emt 0:05:02] Wards off Bb7} 23. b3 {[%emt 0:04:17]} Rfc8 {[%emt 0:12:17]} 24. Be2 {[%emt 0:07:29]} Rc6 {[%emt 0:01:24]} 25. Rac1 {[%emt 0:00:23]} Nd5 {[%emt 0:01:47]} 26. Rxc6 {[%emt 0:00:45]} Rxc6 {[%emt 0:00:04]} 27. Qe4 {[%emt 0:00:31]} Qd8 {[%emt 0:04:38]} 28. Bd3 {[%emt 0:06:51] This pair of bishops is nice.} g6 {[%emt 0:00:29]} 29. Bc4 {[%emt 0:00:21][%cal Of1e1]} Bf8 {[%emt 0:06:03]} 30. Bf4 {[%emt 0:03:31]} a5 {[%emt 0:03:40]} 31. Be5 {[%emt 0:00:47]} Rc8 {[%emt 0:01:17]} 32. Re1 {[%emt 0:02:17]} Qd7 {[%emt 0:05:13]} 33. h4 {[%emt 0:01:37][%cal Bh3h4,Bh4h5][%mdl 32]} h5 {[%emt 0:01:39]} (33... Nb6 {might be stronger.} 34. Ba6 Rc3) 34. g4 $11 {[%emt 0:00:33]} hxg4 {[%emt 0:00:58]} 35. Qxg4 {[%emt 0:00:12] [#] h5 is the strong threat.} Bg7 $2 {[%emt 0:00:40]} (35... Bh6 $16) 36. h5 $18 {[%emt 0:01:15]} Bxe5 {[%emt 0:00:24]} 37. dxe5 {[%emt 0:00:28]} (37. Rxe5 $18 Nf6 38. Qg3 Rxc4 39. bxc4 Qxa4 40. Kg2 (40. hxg6 Qa1+ 41. Kg2 Qxd4 $18)) 37... Ne7 {[%emt 0:01:39]} (37... Nb6 $1 $14) 38. Rd1 $16 {[%emt 0:00:26] White is more active.} Qe8 {[%emt 0:01:14][%mdl 8192]} (38... Qc7 $16 {keeps fighting.}) 39. Qg5 $18 {[%emt 0:01:27]} Rd8 $2 {[%emt 0:00:47]} (39... Nd5 40. hxg6 fxg6) 40. Rd6 {[%emt 0:00:43] aiming for hxg6.} Rxd6 {[%emt 0:00:32]} 41. exd6 {[%emt 0:30:06] Weighted Error Value: White=0.12 (very precise) /Black=0.27 (precise) .  Loses game:     	---       	Black=1      Missed win:     	White=1     	---        Mistake:       	---       	Black=4      Inaccurate:     	White=1     	Black=1      OK:         	White=10    	Black=14     Best:        	White=3     	Black=1      Strong:       	---       	Black=3} 1-0

[Event "Sardinia World Festival-A 2024"]
[Site "Orosei"]
[Date "2024.04.30"]
[Round "4.4"]
[White "Sonis, Francesco"]
[Black "Kilic, Eray"]
[Result "1/2-1/2"]
[ECO "D02"]
[WhiteElo "2562"]
[BlackElo "2429"]
[Annotator "TA"]
[PlyCount "156"]
[EventDate "2024.04.26"]
[EventType "swiss"]
[EventCountry "ITA"]
[SourceTitle "playchess.com"]
[Source "ChessBase"]
[SourceQuality "1"]
[TimeControl "40/5400+30:1800+30"]

{[%evp 54,156,4,7,3,5,6,6,2,0,0,0,0,0,15,15,15,15,38,38,38,37,38,38,46,46,46,46,63,63,63,63,63,63,63,63,63,63,63,63,90,90,90,63,63,63,63,40,39,39,39,39,47,32,32,32,32,8,32,32,32,32,32,32,32,32,32,32,32,32,32,32,32,32,32,32,43,32,32,0,43,32,32,32,32,26,32,8,8,8,8,0,8,8,8,8,8,8,8,8,8,8,8,8,8]} 1. Nf3 {[%emt 0:00:02]} d5 {[%emt 0:00:12]} 2. g3 {[%emt 0:00:08]} Nc6 {[%emt 0:00:06]} 3. d4 {[%emt 0:00:04]} Bf5 {[%emt 0:00:04]} 4. Bg2 {[%emt 0:00:18]} Nb4 {[%emt 0:00:05]} 5. Na3 {[%emt 0:00:26]} e6 {[%emt 0:00:04]} 6. O-O {[%emt 0:01:26]} Nc6 {[%emt 0:00:03]} 7. Nb1 {[%emt 0:00:12]} Nb4 {[%emt 0:00:05] D02: 1 d4 d5 2 Nf3 sidelines, including 2...Nf6 3 g3 and 2...Nf6 3 Bf4.} 8. Ne1 {[%emt 0:01:03]} Nf6 {[%emt 0:00:16]} 9. c3 {[%emt 0:00:12]} Nc6 {[%emt 0:00:10]} 10. Nd2 {[%emt 0:00:43]} h6 {[%emt 0:00:55]} 11. Nd3 {[%emt 0:01:45]} Be7 $146 {[%emt 0:01:14]} ({Predecessor:} 11... Ng4 12. h3 Nf6 13. Re1 Be7 14. Nf3 O-O 15. Bf4 Nd7 16. g4 Be4 17. a4 Bd6 18. Bxd6 cxd6 19. Qd2 f5 {0-1 Kirchmann,G (1311)-Moeller,B (1589) GER Seniors Derby 07th 2008 (2.19)}) 12. Re1 {[%emt 0:00:18]} O-O {[%emt 0:02:16]} 13. a4 {[%emt 0:02:22]} Re8 {[%emt 0:03:39]} 14. a5 {[%emt 0:00:21]} a6 {[%emt 0:00:12]} 15. b4 {[%emt 0:07:12]} Na7 {[%emt 0:10:56]} 16. Bb2 {[%emt 0:04:58]} Nb5 {[%emt 0:01:29]} 17. Qb3 {[%emt 0:06:57]} Nd6 {[%emt 0:05:19]} 18. f3 {[%emt 0:03:15]} Bxd3 {[%emt 0:03:08]} 19. exd3 {[%emt 0:00:05]} b6 {[%emt 0:04:09]} 20. axb6 {[%emt 0:05:17]} cxb6 {[%emt 0:03:00]} 21. Ra4 {[%emt 0:00:50]} b5 {[%emt 0:05:59]} 22. Ra2 {[%emt 1:03:36]} Qb6 {[%emt 0:02:08]} 23. f4 {[%emt 0:00:00]} Nb7 {[%emt 0:04:02]} 24. Rea1 {[%emt 0:00:00]} a5 {[%emt 0:15:00]} 25. bxa5 {[%emt 0:00:00]} Rxa5 {[%emt 0:05:37]} 26. c4 {[%emt 0:00:00]} Rxa2 {[%emt 0:00:18]} 27. Rxa2 {[%emt 0:00:00]} Na5 {[%emt 0:09:14]} 28. Qxb5 {[%emt 0:00:00]} Qxb5 {[%emt 0:00:04]} 29. cxb5 {[%emt 0:00:00]} Rb8 {[%emt 0:00:51]} 30. Rxa5 {[%emt 0:00:00]} (30. Bc3 $5 Nb7 $8 31. Ra7 $11) 30... Bb4 {[%emt 0:00:09]} 31. Nb3 {[%emt 0:00:00]} Bxa5 {[%emt 0:00:06]} 32. Nxa5 {[%emt 0:00:00]} Rxb5 {[%emt 0:00:06]} 33. Bc3 {[%emt 0:00:00]} Ng4 {[%emt 0:01:34]} 34. Bf3 {[%emt 0:00:00]} Rb1+ {[%emt 0:02:32]} 35. Kg2 {[%emt 0:00:00]} Rc1 {[%emt 0:00:39]} 36. Bxg4 {[%emt 0:00:00]} Rxc3 {[%emt 0:00:04]} 37. Be2 {[%emt 0:00:00]} Kf8 {[%emt 0:00:44]} 38. Kf2 {[%emt 0:00:00]} Ke7 {[%emt 0:00:20]} 39. Ke3 {[%emt 0:00:00]} Kd7 {[%emt 0:03:33]} 40. Nb7 {[%emt 0:00:00]} Rc2 {[%emt 0:00:11]} 41. Nc5+ {[%emt 0:13:58]} Kd6 {[%emt 0:30:06]} 42. Nb3 {[%emt 0:00:03]} Rb2 {[%emt 0:00:45]} 43. Nd2 $1 {[%emt 0:00:03]} Ke7 {[%emt 0:00:43]} 44. Nf3 {[%emt 0:00:11]} h5 {[%emt 0:00:36]} 45. h3 {[%emt 0:02:06]} g6 {[%emt 0:01:16]} 46. Ne5 {[%emt 0:00:12]} Ra2 {[%emt 0:00:19]} 47. Bf3 {[%emt 0:00:29]} Ra8 {[%emt 0:05:47]} 48. g4 {[%emt 0:07:17]} hxg4 {[%emt 0:00:16]} 49. hxg4 {[%emt 0:00:06]} Kf6 {[%emt 0:04:19]} 50. f5 {[%emt 0:03:36]} gxf5 {[%emt 0:00:09]} 51. gxf5 {[%emt 0:00:05]} Kxf5 {[%emt 0:00:29]} 52. Nxf7 {[%emt 0:00:05]} Ra1 {[%emt 0:00:20]} 53. Ne5 {[%emt 0:00:39]} Rg1 {[%emt 0:00:50]} 54. Kf2 {[%emt 0:00:11]} Rg7 {[%emt 0:00:14]} 55. Bg2 {[%emt 0:00:06]} Rh7 {[%emt 0:00:37]} 56. Kg3 {[%emt 0:00:18]} Rg7+ {[%emt 0:00:14]} 57. Kf3 {[%emt 0:00:06]} Rh7 {[%emt 0:00:12]} 58. Ke3 {[%emt 0:01:00]} Rh8 {[%emt 0:00:44]} 59. Bf1 {[%emt 0:02:08]} Rh7 {[%emt 0:00:11]} 60. Be2 {[%emt 0:00:13]} Rg7 {[%emt 0:00:20]} 61. Bh5 {[%emt 0:01:16]} Rg3+ {[%emt 0:00:47]} 62. Kd2 {[%emt 0:00:09]} Rg5 {[%emt 0:00:27]} 63. Be8 {[%emt 0:01:14]} Kf6 {[%emt 0:01:18]} 64. Ba4 {[%emt 0:00:06]} Rg1 {[%emt 0:00:37]} 65. Kc3 {[%emt 0:00:41]} Rc1+ {[%emt 0:00:14]} 66. Kd2 {[%emt 0:00:45]} Rg1 {[%emt 0:00:05]} 67. Bd7 {[%emt 0:02:52]} Rg3 {[%emt 0:03:51]} 68. Kc3 {[%emt 0:00:27]} Rg1 {[%emt 0:00:05]} 69. Kb4 {[%emt 0:00:34]} Rc1 {[%emt 0:00:08]} 70. Kb5 {[%emt 0:00:32]} Rc3 {[%emt 0:02:20]} 71. Kb6 {[%emt 0:00:11]} Kf5 {[%emt 0:00:37]} 72. Kb5 {[%emt 0:05:40]} Kf6 {[%emt 0:02:20]} 73. Be8 {[%emt 0:00:44]} Kf5 {[%emt 0:00:41]} 74. Bf7 {[%emt 0:01:12]} Kf4 {[%emt 0:00:00]} 75. Bxe6 {[%emt 0:00:00]} Ke3 {[%emt 0:00:00]} 76. Nc6 {[%emt 0:00:00]} Kxd3 {[%emt 0:00:00]} 77. Bxd5 {[%emt 0:00:00]} Rxc6 {[%emt 0:00:00]} 78. Kxc6 {[%emt 0:00:00]} Kxd4 {[%emt 0:00:00]} 1/2-1/2

[Event "Sardinia World Festival-A 2024"]
[Site "Orosei"]
[Date "2024.04.30"]
[Round "4.5"]
[White "Rozen, Eytan"]
[Black "Fedoseev, Vladimir"]
[Result "0-1"]
[ECO "A40"]
[WhiteElo "2499"]
[BlackElo "2690"]
[Annotator "TA"]
[PlyCount "116"]
[EventDate "2024.04.26"]
[EventType "swiss"]
[EventCountry "ITA"]
[SourceTitle "playchess.com"]
[Source "ChessBase"]
[SourceQuality "1"]
[TimeControl "40/5400+30:1800+30"]

{[%evp 38,116,-75,-88,-85,-82,-70,-100,-85,-77,-70,-70,-67,-93,-97,-80,-63,-114,-111,-116,-63,-64,-57,-65,-63,-99,-87,-98,-87,-162,-162,-406,-382,-425,-432,-486,-437,-581,-575,-474,-270,-272,-253,-659,-338,-333,-331,-321,-329,-421,-420,-518,-503,-471,-421,-415,-356,-341,-308,-665,-663,-927,-947,-1078,-1055,-1293,-1239,-1654,-1420,-1735,-2809,-2370,-2750,-6816,-4922,-29982,-29983,-29986,-29987,-29986,-29984]} 1. d4 {[%emt 0:00:05]} e6 {[%emt 0:02:18]} 2. c4 {[%emt 0:00:58]} b6 {[%emt 0:02:08]} 3. e4 {[%emt 0:00:53]} Bb7 {[%emt 0:00:01]} 4. Bd3 {[%emt 0:00:10]} Bb4+ {[%emt 0:04:13]} 5. Kf1 {[%emt 0:00:22]} f5 {[%emt 0:07:14]} 6. exf5 {[%emt 0:03:22]} Nf6 {[%emt 0:00:10]} 7. Nc3 {[%emt 0:04:10] A40: Unusual replies to 1 d4.} O-O {[%emt 0:03:18]} 8. Nf3 {[%emt 0:02:59]} exf5 {[%emt 0:05:10]} 9. Bxf5 {[%emt 0:01:39]} Bxc3 {[%emt 0:03:12]} 10. bxc3 {[%emt 0:00:19]} Ne4 {[%emt 0:00:12]} 11. Bxe4 {[%emt 0:01:48]} Bxe4 {[%emt 0:00:09]} 12. Ng5 {[%emt 0:02:14]} Bg6 $146 {[%emt 0:00:00]} ({Predecessor:} 12... Bf5 13. g4 Bg6 14. h4 Qf6 15. Rh2 h6 16. h5 hxg5 17. hxg6 Qxg6 18. Rh5 Nc6 19. Bxg5 {0-1 Palliser,R (2456)-Edouard,R (2653) BCF-chT1c 1314 (4NCL) Promotion pool 2013 (9.113)}) 13. h4 {[%emt 0:03:11]} Qf6 {[%emt 0:02:05]} 14. Be3 {[%emt 0:02:25]} Nc6 {[%emt 0:12:34]} 15. h5 {[%emt 0:06:35]} Rae8 {[%emt 0:00:56]} 16. Qe2 {[%emt 0:11:39]} Bf5 {[%emt 0:01:00]} 17. Re1 {[%emt 0:04:38]} h6 {[%emt 0:03:21]} 18. Nh3 {[%emt 0:01:41]} Na5 {[%emt 0:03:36]} 19. Nf4 {[%emt 0:06:06]} Bh7 {[%emt 0:03:48]} 20. Ng6 {[%emt 0:04:10]} Bxg6 {[%emt 0:03:47]} 21. hxg6 {[%emt 0:00:06]} Qxg6 {[%emt 0:01:37]} 22. Rh4 {[%emt 0:00:19]} Qf7 {[%emt 0:05:35]} 23. d5 {[%emt 0:01:59]} Qf6 {[%emt 0:01:01]} 24. Rd4 {[%emt 0:00:45]} Nb7 {[%emt 0:02:13]} 25. Kg1 {[%emt 0:00:59]} Nd6 {[%emt 0:00:41]} 26. Qd3 {[%emt 0:00:24]} Qf5 {[%emt 0:01:50]} 27. Qxf5 {[%emt 0:01:27]} (27. Qd1 $15) 27... Nxf5 $17 {[%emt 0:04:57]} 28. Rdd1 {[%emt 0:00:14]} g5 {[%emt 0:02:41]} (28... Nxe3 $17 29. Rxe3 Rxe3 30. fxe3 g5) 29. Bd4 $15 {[%emt 0:02:28]} Kf7 {[%emt 0:00:58]} 30. Kf1 {[%emt 0:02:34]} h5 {[%emt 0:05:45]} 31. f3 {[%emt 0:01:46]} d6 {[%emt 0:00:05]} 32. Kf2 {[%emt 0:00:50]} Kg6 {[%emt 0:00:12]} 33. a4 {[%emt 0:03:25] [#]} (33. Rxe8 $17 Rxe8 34. a3) 33... g4 $1 $19 {[%emt 0:02:46]} 34. Rxe8 $2 {[%emt 0:01:46] [#]} (34. Kg1 {keeps fighting.}) 34... g3+ $1 $19 {[%emt 0:01:53]} ({Less strong is} 34... Rxe8 35. fxg4 hxg4 36. a5 $17) 35. Ke2 {[%emt 0:00:02]} Rxe8+ {[%emt 0:00:09]} 36. Kd3 {[%emt 0:00:02]} h4 {[%emt 0:02:33]} 37. Rh1 {[%emt 0:00:04]} Kg5 {[%emt 0:00:30]} 38. Kd2 {[%emt 0:00:47]} Re7 {[%emt 0:00:08]} (38... Nxd4 $142 39. cxd4 a6) 39. Rh3 $19 {[%emt 0:00:53]} Rf7 {[%emt 0:01:32]} (39... Kf4 40. Bf6 Rh7 41. Bd8 $11) 40. Rh1 $2 {[%emt 0:01:19]} (40. Ke2) 40... Rh7 {[%emt 0:01:55]} 41. Rh3 {[%emt 0:30:39]} Ne7 {[%emt 0:31:26]} 42. Be3+ {[%emt 0:02:06]} Kf5 {[%emt 0:01:24]} 43. Kd3 {[%emt 0:00:05]} Ng6 {[%emt 0:02:19]} 44. Kd4 {[%emt 0:00:07]} Rh8 {[%emt 0:00:19]} 45. Kd3 {[%emt 0:01:22]} a6 {[%emt 0:04:36]} (45... Ne5+ 46. Kd4 $19) 46. Bd2 {[%emt 0:04:57]} Re8 {[%emt 0:01:01]} 47. Rh1 {[%emt 0:02:55]} Ra8 {[%emt 0:00:00]} 48. f4 $2 {[%emt 0:00:00]} (48. Ke2) 48... Re8 $19 {[%emt 0:00:00]} ({Stronger than} 48... Nxf4+ 49. Bxf4 Kxf4 50. Rxh4+ Kf5 51. Rh7 $14) 49. a5 {[%emt 0:00:00]} bxa5 {[%emt 0:00:00]} 50. c5 {[%emt 0:00:00]} dxc5 {[%emt 0:00:00]} 51. c4 {[%emt 0:00:00]} a4 {[%emt 0:00:00]} ({Weaker is} 51... Nxf4+ 52. Bxf4 Kxf4 53. Rxh4+ Kg5 54. Rh7 $11) 52. Ra1 {[%emt 0:00:00]} Nxf4+ {[%emt 0:00:00]} 53. Bxf4 {[%emt 0:00:00]} Kxf4 {[%emt 0:00:00]} 54. Rf1+ {[%emt 0:00:00]} Kg5 {[%emt 0:00:00]} 55. Rf7 {[%emt 0:00:00]} a3 {[%emt 0:00:00]} 56. Rg7+ {[%emt 0:00:00]} Kf6 {[%emt 0:00:00]} 57. Rxc7 {[%emt 0:00:00]} h3 {[%emt 0:00:00]} 58. Rc6+ {[%emt 0:00:00]} Ke5 {[%emt 0:10:12]} 0-1